[Event "44th Chess Olympiad Women 2022"]
[Site "Chennai"]
[Date "2022.08.03"]
[Round "6.78"]
[White "Sitoe, Cheila Andre"]
[Black "Comas Colon, Rinelly M."]
[Result "1-0"]
[WhiteElo "1574"]
[BlackElo "1585"]
[Annotator "NA RC"]
[PlyCount "109"]
[EventDate "2022.??.??"]
[TimeControl "60"]

1. e4 {[%emt 0:00:06]} g6 {[%emt 0:00:18]} 2. Nf3 {[%emt 0:00:19]} Bg7 {
[%emt 0:00:34]} 3. Bc4 {[%emt 0:00:18]} d6 {[%emt 0:00:54]} 4. c3 {[%emt 0:00:
00]} Nf6 {[%emt 0:01:23]} 5. d3 {[%emt 0:00:09]} O-O {[%emt 0:02:58]} 6. h3 {
[%emt 0:06:05]} c6 {[%emt 0:02:52]} 7. O-O {[%emt 0:01:06]} b5 {[%emt 0:03:43]}
8. Bb3 {[%emt 0:00:30]} Nbd7 {[%emt 0:03:20]} 9. Be3 {[%emt 0:02:13]} Bb7 {
[%emt 0:03:07]} 10. Qd2 {[%emt 0:01:56]} c5 {[%emt 0:02:20]} 11. c4 {[%emt 0:
00:00]} b4 {[%emt 0:08:59]} 12. Bh6 {[%emt 0:00:39]} Qc7 {[%emt 0:08:34]} 13.
Bxg7 {[%emt 0:00:27]} Kxg7 {[%emt 0:00:07]} 14. Qe3 {[%emt 0:00:34]} Rfd8 {
[%emt 0:06:51]} 15. Nbd2 {[%emt 0:00:32]} a5 {[%emt 0:11:05]} 16. Ba4 {[%emt 0:
00:00]} Nb6 {[%emt 0:02:43]} 17. Bb5 {[%emt 0:00:17]} Ba6 {[%emt 0:00:47]} 18.
Bxa6 {[%emt 0:00:08]} Rxa6 {[%emt 0:00:05]} 19. b3 {[%emt 0:03:54]} a4 {
[%emt 0:02:10]} 20. d4 {[%emt 0:00:20]} axb3 {[%emt 0:06:19]} 21. axb3 {
[%emt 0:00:24]} Rda8 {[%emt 0:01:19]} 22. Rxa6 {[%emt 0:00:18]} Rxa6 {[%emt 0:
00:00]} 23. dxc5 {[%emt 0:00:20]} Qxc5 {[%emt 0:04:17]} 24. Qd3 {[%emt 0:00:18]
} Ra2 {[%emt 0:01:48]} 25. Qb1 {[%emt 0:01:17]} Ra7 {[%emt 0:00:54]} 26. Qb2 {
[%emt 0:00:31]} Nbd7 {[%emt 0:04:51]} 27. Nd4 {[%emt 0:01:45]} Ne5 {[%emt 0:00:
00]} 28. Nb5 {[%emt 0:00:53]} Ra6 {[%emt 0:01:28]} 29. Qc2 {[%emt 0:00:54]} Ne8
{[%emt 0:02:08]} 30. Kh1 {[%emt 0:00:16]} Nc7 {[%emt 0:00:48]} 31. Nxc7 {
[%emt 0:00:07]} Qxc7 {[%emt 0:00:04]} 32. f4 {[%emt 0:00:11]} Nd7 {[%emt 0:00:
00]} 33. Nf3 {[%emt 0:00:39]} Qc5 {[%emt 0:03:32]} 34. Qd3 {[%emt 0:05:32]} Ra2
{[%emt 0:02:08]} 35. Qd4+ {[%emt 0:06:31]} Kg8 {[%emt 0:01:35]} 36. Qd3 {
[%emt 0:02:16]} Qa7 {[%emt 0:03:25]} 37. Nd4 {[%emt 0:05:30]} Nc5 {[%emt 0:00:
00]} 38. Qb1 {[%emt 0:00:46]} Qa3 {[%emt 0:02:33]} 39. Kh2 {[%emt 0:02:34]} Rb2
{[%emt 0:01:00]} 40. Qe1 {[%emt 0:01:37]} Qa2 {[%emt 0:01:10]} 41. Rg1 {
[%emt 0:30:38]} Nxb3 {[%emt 0:02:37]} 42. Nc6 {[%emt 0:00:00]} Nd2 {[%emt 0:00:
00]} 43. Kh1 {[%emt 0:00:00]} e6 {[%emt 0:07:07]} 44. Qh4 {[%emt 0:00:00]} Qa8
{[%emt 0:10:04]} 45. Ne7+ {[%emt 0:00:00]} Kg7 {[%emt 0:04:01]} 46. f5 {
[%emt 0:00:00]} Nxe4 {[%emt 0:01:51]} 47. fxe6 {[%emt 0:00:00]} fxe6 {[%emt 0:
00:00]} 48. Rf1 {[%emt 0:00:00]} Ra2 {[%emt 0:02:39]} 49. Qf4 {[%emt 0:00:00]}
Rf2 {[%emt 0:01:18]} 50. Rxf2 {[%emt 0:00:00]} Nxf2+ {[%emt 0:00:07]} 51. Qxf2
{[%emt 0:00:00]} Qa1+ {[%emt 0:00:35]} 52. Kh2 {[%emt 0:00:00]} b3 {[%emt 0:00:
00]} 53. Nc6 {[%emt 0:00:00]} b2 {[%emt 0:01:02]} 54. Nd4 {[%emt 0:00:00]} h5 {
[%emt 0:01:51]} 55. Nxe6+ {[%emt 0:00:00]} 1-0

[Event "44th Chess Olympiad Women 2022"]
[Site "Chennai"]
[Date "2022.08.05"]
[Round "7.1"]
[White "Beydullayeva, Govhar"]
[Black "Vaishali R"]
[Result "0-1"]
[WhiteElo "2390"]
[BlackElo "2442"]
[Annotator "ChessBase"]
[PlyCount "144"]
[EventDate "2022.??.??"]
[TimeControl "60"]

1. d4 {[%emt 0:00:02]} Nf6 {[%emt 0:00:41]} 2. c4 {[%emt 0:00:07]} e6 {[%emt 0:
00:00]} 3. Nf3 {[%emt 0:00:07]} Bb4+ {[%emt 0:00:56]} 4. Bd2 {[%emt 0:00:06]}
Qe7 {[%emt 0:00:12]} 5. g3 {[%emt 0:00:05]} Nc6 {[%emt 0:00:39]} 6. Bg2 {
[%emt 0:01:15]} Bxd2+ {[%emt 0:01:15]} 7. Nbxd2 {[%emt 0:00:55]} d6 {[%emt 0:
00:00]} 8. O-O {[%emt 0:04:41]} e5 {[%emt 0:00:58]} 9. d5 {[%emt 0:10:57]} Nb8
{[%emt 0:00:13]} 10. e4 {[%emt 0:00:12]} a5 {[%emt 0:01:11]} 11. b3 {[%emt 0:
00:00]} Bg4 {[%emt 0:13:33]} 12. a3 {[%emt 0:05:57]} O-O {[%emt 0:07:19]} 13.
h3 {[%emt 0:05:24]} Bxf3 {[%emt 0:01:07]} 14. Qxf3 {[%emt 0:00:45]} c6 {
[%emt 0:04:22]} 15. Rfc1 {[%emt 0:04:21]} Na6 {[%emt 0:06:24]} 16. Qc3 {
[%emt 0:02:59]} Qc7 {[%emt 0:10:23]} 17. h4 {[%emt 0:18:42]} Qb6 {[%emt 0:00:
00]} 18. Bh3 {[%emt 0:04:27]} Rfe8 {[%emt 0:05:48]} 19. Rab1 {[%emt 0:12:06]}
Re7 {[%emt 0:05:37]} 20. Qf3 {[%emt 0:08:17]} Qd4 {[%emt 0:11:53]} 21. Rd1 {
[%emt 0:00:52]} cxd5 {[%emt 0:02:14]} 22. cxd5 {[%emt 0:03:48]} Rc7 {[%emt 0:
00:00]} 23. Nc4 {[%emt 0:06:08]} Qxe4 {[%emt 0:05:54]} 24. Kg2 {[%emt 0:00:20]}
Qxf3+ {[%emt 0:01:24]} 25. Kxf3 {[%emt 0:00:01]} a4 {[%emt 0:01:28]} 26. Nxd6 {
[%emt 0:03:07]} Rc3+ {[%emt 0:00:34]} 27. Kg2 {[%emt 0:00:30]} axb3 {[%emt 0:
00:00]} 28. Nb5 {[%emt 0:01:17]} Rc5 {[%emt 0:00:29]} 29. Rxb3 {[%emt 0:00:04]}
Rxd5 {[%emt 0:01:00]} 30. Rxd5 {[%emt 0:02:08]} Nxd5 {[%emt 0:00:02]} 31. Nd6 {
[%emt 0:00:05]} b6 {[%emt 0:00:56]} 32. Nc4 {[%emt 0:00:19]} Nc5 {[%emt 0:00:
00]} 33. Nxb6 {[%emt 0:01:02]} Nxb6 {[%emt 0:00:44]} 34. Rxb6 {[%emt 0:00:00]}
g6 {[%emt 0:00:29]} 35. Rb5 {[%emt 0:00:21]} Nd3 {[%emt 0:00:31]} 36. Rb3 {
[%emt 0:01:09]} Ne1+ {[%emt 0:00:30]} 37. Kf1 {[%emt 0:00:56]} Nc2 {[%emt 0:00:
00]} 38. Rb2 {[%emt 0:00:52]} Nxa3 {[%emt 0:00:18]} 39. Ra2 {[%emt 0:00:07]}
Ra7 {[%emt 0:00:47]} 40. Ke2 {[%emt 0:00:51]} Kf8 {[%emt 0:00:44]} 41. Bg2 {
[%emt 0:30:32]} Ke7 {[%emt 0:01:44]} 42. Bd5 {[%emt 0:00:00]} f6 {[%emt 0:00:
00]} 43. Kf3 {[%emt 0:00:00]} Kd6 {[%emt 0:01:45]} 44. Bg8 {[%emt 0:00:00]} h5
{[%emt 0:00:39]} 45. Bf7 {[%emt 0:00:00]} Rxf7 {[%emt 0:00:35]} 46. Rxa3 {
[%emt 0:00:00]} Ke6 {[%emt 0:00:19]} 47. Ke4 {[%emt 0:00:00]} Rd7 {[%emt 0:00:
00]} 48. Ra6+ {[%emt 0:00:00]} Rd6 {[%emt 0:00:06]} 49. Ra4 {[%emt 0:00:00]}
Rb6 {[%emt 0:01:27]} 50. Rc4 {[%emt 0:00:00]} Rd6 {[%emt 0:00:47]} 51. Ra4 {
[%emt 0:00:00]} Rc6 {[%emt 0:00:04]} 52. Rb4 {[%emt 0:00:00]} Ra6 {[%emt 0:00:
00]} 53. Rc4 {[%emt 0:00:00]} Kd6 {[%emt 0:02:10]} 54. Rb4 {[%emt 0:00:00]} Rc6
{[%emt 0:00:17]} 55. Rb8 {[%emt 0:00:00]} Rc4+ {[%emt 0:02:01]} 56. Kd3 {
[%emt 0:00:00]} Rd4+ {[%emt 0:00:16]} 57. Ke3 {[%emt 0:00:00]} Ke6 {[%emt 0:00:
00]} 58. Rf8 {[%emt 0:03:26]} Kf5 {[%emt 0:00:08]} 59. Kf3 {[%emt 0:01:13]} Rd6
{[%emt 0:01:30]} 60. Rf7 {[%emt 0:00:25]} e4+ {[%emt 0:02:15]} 61. Ke3 {
[%emt 0:00:07]} Rd3+ {[%emt 0:02:01]} 62. Ke2 {[%emt 0:00:11]} Rf3 {[%emt 0:00:
00]} 63. Rf8 {[%emt 0:01:13]} Kg4 {[%emt 0:00:44]} 64. Re8 {[%emt 0:00:04]} f5
{[%emt 0:03:48]} 65. Rg8 {[%emt 0:01:56]} Kh3 {[%emt 0:00:18]} 66. Rxg6 {
[%emt 0:00:04]} Kg2 {[%emt 0:00:05]} 67. Rg5 {[%emt 0:01:14]} Rxf2+ {[%emt 0:
00:00]} 68. Ke3 {[%emt 0:00:27]} Kf1 {[%emt 0:01:54]} 69. Rxh5 {[%emt 0:00:42]}
Rf3+ {[%emt 0:00:15]} 70. Kd4 {[%emt 0:00:12]} e3 {[%emt 0:00:11]} 71. Rh8 {
[%emt 0:00:11]} e2 {[%emt 0:00:12]} 72. Re8 {[%emt 0:00:04]} Rxg3 {[%emt 0:00:
00]} 0-1

[Event "44th Chess Olympiad Women 2022"]
[Site "Chennai"]
[Date "2022.08.05"]
[Round "7.1"]
[White "Harika, Dronavalli"]
[Black "Balajayeva, Khanim"]
[Result "1/2-1/2"]
[WhiteElo "2517"]
[BlackElo "2344"]
[Annotator "TA"]
[PlyCount "119"]
[EventDate "2022.??.??"]
[TimeControl "60"]

{[%evp 11,119,17,27,7,10,20,22,31,16,18,22,31,20,23,21,20,31,22,34,34,34,34,38,
37,24,35,38,14,10,11,4,15,20,18,54,59,52,59,59,59,52,52,89,60,75,60,82,82,82,
82,118,118,135,65,90,90,154,154,154,154,152,132,243,154,187,154,290,154,154,
112,368,164,375,368,368,368,368,368,321,252,232,0,0,0,0,0,0,0,0,0,0,0,0,0,0,0,
0,0,0,0,0,0,0,0,0,0,0,0,0,0]} 1. d4 {[%emt 0:00:30]} d5 {[%emt 0:00:04]} 2. c4
{[%emt 0:00:08]} dxc4 {[%emt 0:00:07]} 3. Nf3 {[%emt 0:00:16]} Nf6 {[%emt 0:00:
00]} 4. e3 {[%emt 0:00:17]} e6 {[%emt 0:00:14]} 5. Bxc4 {[%emt 0:00:07]} c5 {
[%emt 0:00:04]} 6. O-O {[%emt 0:00:29]} a6 {[%emt 0:00:12]} 7. Be2 {[%emt 0:00:
00] D27: Queen's Gambit Accepted: Classical main line: 7 e4!? and 7 a4.} Nbd7 {
[%emt 0:01:55]} 8. b3 {[%emt 0:02:31]} b6 {[%emt 0:03:29]} 9. Ne5 {[%emt 0:00:
00]} Bb7 {[%emt 0:07:35]} 10. Bf3 {[%emt 0:00:43] [#]} Nd5 $146 {[%emt 0:12:30]
} ({Predecessor:} 10... Qc7 11. Bb2 Rd8 12. Bxb7 Qxb7 13. Qe2 Nxe5 14. dxe5 Nd5
15. Nd2 Be7 16. Ne4 O-O {1-0 (47) Ding,L (2799)-Aronian,L (2782) Chess.com INT
2021}) 11. Nxd7 {[%emt 0:18:14]} Qxd7 {[%emt 0:00:09]} 12. Bb2 {[%emt 0:00:05]
[%cal Yc1b2,Yb2d4,Yd4b6]} Rd8 {[%emt 0:12:20]} 13. Nd2 {[%emt 0:06:34]} cxd4 {
[%emt 0:18:33]} 14. Bxd4 {[%emt 0:02:26]} Bb4 {[%emt 0:00:35]} 15. Nc4 {
[%emt 0:14:02]} ({But not} 15. Bxg7 Rg8 16. Bd4 Nc3 $15) 15... b5 {[%emt 0:00:
00]} 16. Nb6 {[%emt 0:05:38]} ({Wrong is} 16. Bxg7 $2 Rg8 17. e4 (17. Ne5 $2
Qc7 $19) 17... bxc4 18. exd5 Rxg7 $19) 16... Nxb6 {[%emt 0:06:45]} 17. Bxb6 {
[%emt 0:00:18]} Bxf3 {[%emt 0:01:40]} 18. Qxf3 {[%emt 0:00:34]} Rc8 {[%emt 0:
00:00]} 19. Bd4 {[%emt 0:24:18]} Bc3 {[%emt 0:02:25]} 20. Rad1 {[%emt 0:03:32]}
Bxd4 {[%emt 0:00:38]} 21. Rxd4 {[%emt 0:00:05]} Qc6 {[%emt 0:09:21]} 22. Rfd1
$36 {[%emt 0:02:41][%cal Yf1d1,Yd1d6,Yd6b6] White is more active.} O-O {
[%emt 0:17:11]} 23. Qxc6 {[%emt 0:01:30]} Rxc6 {[%emt 0:00:02]} 24. Rd6 {
[%emt 0:00:07]} Rxd6 {[%emt 0:00:19]} 25. Rxd6 $14 {[%emt 0:00:07] Endgame
KR-KR} Ra8 {[%emt 0:00:12]} 26. Rb6 {[%emt 0:02:09]} Kf8 {[%emt 0:00:00]} 27.
Kf1 {[%emt 0:00:43]} Ke7 {[%emt 0:00:45]} 28. Ke2 {[%emt 0:00:12]} Ra7 {
[%emt 0:00:27]} 29. a4 {[%emt 0:02:31]} bxa4 {[%emt 0:01:22]} 30. bxa4 {
[%emt 0:00:05]} h5 {[%emt 0:00:22]} 31. h4 {[%emt 0:02:13]} g6 {[%emt 0:00:34]
[#]} 32. Kf3 {[%emt 0:01:03]} (32. a5 $1 $16) 32... Kf6 {[%emt 0:00:34]} 33.
Kf4 {[%emt 0:00:19]} Rc7 {[%emt 0:01:58]} (33... a5 $142) 34. Rxa6 $16 {
[%emt 0:00:12]} Rc2 {[%emt 0:00:01]} 35. Kg3 {[%emt 0:01:04]} Ra2 {[%emt 0:00:
00]} 36. Ra7 {[%emt 0:00:29]} Kg7 {[%emt 0:00:18]} (36... Ra1 $16 37. a5 Ra3)
37. a5 {[%emt 0:00:45][%cal Ya4a5,Ya5a6]} Kf6 {[%emt 0:00:26]} 38. a6 {[%emt 0:
00:40]} Kg7 {[%emt 0:00:05]} (38... Ra3 $16 39. Ra8 Ke5) 39. Kf3 {[%emt 0:01:
53]} (39. Ra8 $18) 39... Kf6 {[%emt 0:00:48]} 40. Ra8 {[%emt 0:00:00]} Kg7 $2 {
[%emt 0:00:07]} (40... Ke5 $16 41. g3 Kf5) 41. e4 {[%emt 0:31:34]} (41. a7 $142
) 41... e5 $2 {[%emt 0:32:17]} (41... Kf6 42. Ke3 Ke5 43. f4+ Kd6) 42. g3 {
[%emt 0:02:43]} Kf6 {[%emt 0:00:00]} 43. Ke3 {[%emt 0:00:00]} Ra3+ {[%emt 0:00:
00]} 44. Kd2 {[%emt 0:00:00]} Ra2+ {[%emt 0:00:00]} 45. Kc3 {[%emt 0:00:00]}
Rxf2 {[%emt 0:00:00]} 46. Rc8 $2 {[%emt 0:00:00]} (46. Kc4 $18) 46... Ra2 $11 {
[%emt 0:00:00] The position is equal.} 47. Rc6+ {[%emt 0:00:00]} Kg7 {[%emt 0:
00:00]} 48. Kb3 {[%emt 0:00:00]} Ra1 {[%emt 0:00:00]} 49. Kb4 {[%emt 0:00:00] 
[#] Threatens to win with Kb5.} f5 $1 {[%emt 0:00:00]} 50. exf5 {[%emt 0:00:00]
} gxf5 {[%emt 0:00:00]} 51. Kb5 {[%emt 0:00:00] Hoping for Rc7+.} f4 {[%emt 0:
00:00]} 52. gxf4 {[%emt 0:00:00]} exf4 {[%emt 0:00:00]} 53. Rc4 {[%emt 0:00:05]
} f3 {[%emt 0:00:00] aiming for ...f2.} 54. Rf4 {[%emt 0:00:06]} Rb1+ {[%emt 0:
00:00]} 55. Kc6 {[%emt 0:00:12]} Ra1 {[%emt 0:00:00]} 56. Kb7 {[%emt 0:00:23]}
Rb1+ {[%emt 0:00:00]} 57. Kc7 {[%emt 0:01:05]} Ra1 {[%emt 0:00:00]} 58. Kb7 {
[%emt 0:00:23]} Rb1+ {[%emt 0:00:00]} 59. Kc7 {[%emt 0:00:03]} Ra1 {[%emt 0:00:
00]} 60. Kb7 {[%emt 0:00:04] Blacks defense is rewarded with a draw. Weighted
Error Value: White=0.20 (precise) /Black=0.19 (very precise)} 1/2-1/2

[Event "44th Chess Olympiad Women 2022"]
[Site "Chennai"]
[Date "2022.08.05"]
[Round "7.1"]
[White "Mammadzada, Gunay"]
[Black "Koneru, Humpy"]
[Result "1-0"]
[WhiteElo "2455"]
[BlackElo "2586"]
[Annotator "TA"]
[PlyCount "89"]
[EventDate "2022.??.??"]
[TimeControl "60"]

{[%evp 12,89,12,20,40,19,22,18,25,17,31,7,14,-33,-28,-84,-82,-108,-81,-174,
-143,-162,-57,-104,-72,-80,0,0,0,12,0,-81,-54,-51,-112,-135,-97,-78,0,0,0,0,0,
-61,-52,-65,26,27,75,74,81,68,249,222,245,214,264,250,245,0,79,27,24,25,461,
618,619,582,626,609,561,561,665,643,1087,1110,1184,1140,931,787]} 1. d4 {
[%emt 0:00:05]} Nf6 {[%emt 0:00:16]} 2. c4 {[%emt 0:00:11]} e6 {[%emt 0:00:16]}
3. Nf3 {[%emt 0:01:11]} d5 {[%emt 0:00:33]} 4. g3 {[%emt 0:00:08]} Bb4+ {
[%emt 0:00:29]} 5. Bd2 {[%emt 0:02:11]} a5 {[%emt 0:00:31]} 6. Bg2 {[%emt 0:00:
00]} O-O {[%emt 0:02:40]} 7. Qc2 {[%emt 0:04:15]} c5 {[%emt 0:00:59] E11:
Bogo-Indian.} 8. dxc5 {[%emt 0:06:25]} d4 {[%emt 0:01:30]} 9. Bxb4 {[%emt 0:00:
00]} axb4 {[%emt 0:00:06] The position is equal.} 10. Nbd2 {[%emt 0:04:22]} Nc6
{[%emt 0:02:52]} 11. Ng5 {[%emt 0:05:35] [#]} e5 $146 {[%emt 0:11:03]} ({
Predecessor:} 11... h6 12. Bxc6 bxc6 13. Ngf3 e5 14. Nxe5 Re8 15. Ndf3 b3 16.
Qd1 Qa5+ 17. Qd2 Qxd2+ 18. Kxd2 {0-1 (27) Labussiere,V (2349)-Delgado Ramirez,
N (2603) Sales Oliveira 2022}) 12. h4 {[%emt 0:09:43]} (12. O-O $11 {was
preferrable.}) 12... h6 $15 {[%emt 0:07:56]} 13. Nge4 {[%emt 0:10:27]} (13. Qd3
$11) 13... Ne8 $17 {[%emt 0:08:31]} 14. Qb3 {[%emt 0:02:37]} Be6 $1 {[%emt 0:
00:00]} (14... f5 15. Nd6 $15) 15. g4 {[%emt 0:03:05]} (15. Nd6 $17 {keeps
fighting.}) 15... Bxg4 $19 {[%emt 0:06:32]} 16. Qg3 {[%emt 0:00:05]} Be6 {
[%emt 0:09:36]} ({Worse is} 16... f5 17. Nd6 $15) ({Black should play} 16...
Bh5 $19 {...f5 is the strong threat.} 17. Rg1 (17. Bf3 Bxf3 18. Qxf3 f5 $19)
17... d3) 17. Rg1 {[%emt 0:00:54]} (17. Nd6 $15 {is superior.}) 17... f5 $1 $17
{[%emt 0:07:34]} 18. Nd6 {[%emt 0:06:38]} Qf6 {[%emt 0:02:57]} (18... Nxd6 $17
19. Bd5 Ne8 $1 20. Bxe6+ Kh8) 19. Bd5 $36 {[%emt 0:04:32] Strongly threatening
Bxe6+. White has the initiative.} (19. Nxb7 $2 e4 20. Bf1 d3 $19) 19... Nd8 {
[%emt 0:02:44]} 20. Nxe8 {[%emt 0:07:11]} Rxe8 {[%emt 0:00:07]} 21. Qb3 {
[%emt 0:00:10]} (21. Qg6 $11 {remains equal.} Qxg6 22. Rxg6) 21... e4 {[%emt 0:
08:38]} 22. O-O-O {[%emt 0:01:44]} Nc6 {[%emt 0:06:40]} ({Much worse is} 22...
Qxh4 23. Qxb4 Qxf2 24. Nb3 $11) 23. Rg3 {[%emt 0:05:21]} d3 {[%emt 0:00:00]}
24. e3 {[%emt 0:00:08] Against Nd4} Rac8 {[%emt 0:02:43]} (24... Kh8 $17 25.
Rdg1 Re7) 25. Rdg1 {[%emt 0:02:02]} Rc7 {[%emt 0:00:04]} 26. Rg6 {[%emt 0:01:
13]} Qe5 {[%emt 0:00:36]} 27. Bxc6 {[%emt 0:02:17]} (27. Rxh6 $11 Bxd5 28. cxd5
) 27... bxc6 $15 {[%emt 0:01:38]} 28. Qxb4 {[%emt 0:00:05]} Rce7 {[%emt 0:01:
59]} (28... Ree7 $15 29. Nb3 Rb7) 29. Nb1 $11 {[%emt 0:03:29]} Kh7 {[%emt 0:00:
51]} (29... Rb8 $11 {deserves consideration.} 30. Qc3 Qxc3+ 31. Nxc3 Bxc4) 30.
Qc3 $16 {[%emt 0:00:14]} Qc7 {[%emt 0:00:14]} 31. Nd2 {[%emt 0:00:28]} Rf8 $2 {
[%emt 0:00:42]} (31... Rg8 $1 $14) 32. f4 $18 {[%emt 0:01:04]} exf3 {[%emt 0:
00:16]} 33. Nxf3 {[%emt 0:00:16]} f4 {[%emt 0:00:51] [#]} 34. e4 {[%emt 0:00:
41]} ({Wrong is} 34. Qxd3 $2 Bf5 35. Qd6 Bxg6 36. Qxg6+ Kh8 $19) 34... Rd8 {
[%emt 0:01:26]} 35. Nd4 $2 {[%emt 0:01:35]} ({Better is} 35. b4 $18) 35... d2+
{[%emt 0:00:15]} (35... Rxd4 $1 $11 {keeps the balance.} 36. Qxd4 Rd7) 36. Kd1
{[%emt 0:00:12]} (36. Qxd2 $16 Qd7 37. Nf3) 36... Rxd4 $11 {[%emt 0:00:00]} 37.
Qxd4 {[%emt 0:00:10] Hoping for Qd6. The board is on fire.} h5 $2 {[%emt 0:00:
08]} (37... f3 $1 $11) 38. Qd6 $18 {[%emt 0:01:20] White is clearly winning.}
Bg4+ {[%emt 0:00:37]} 39. R6xg4 {[%emt 0:01:24]} hxg4 {[%emt 0:00:03]} 40. Qxc7
{[%emt 0:00:49]} Rxc7 {[%emt 0:00:05]} 41. Rxg4 {[%emt 0:30:12] KR-KR} Rb7 {
[%emt 0:31:16]} 42. b3 {[%emt 0:00:46]} Ra7 {[%emt 0:00:39]} 43. Rxf4 {[%emt 0:
00:00]} Rxa2 {[%emt 0:00:00]} 44. e5 {[%emt 0:00:00]} Ra3 {[%emt 0:00:00]} 45.
Rf3 {[%emt 0:00:00] Never resign too early! Weighted Error Value: White=0.25 
(precise) /Black=0.45} 1-0

[Event "44th Chess Olympiad Women 2022"]
[Site "Chennai"]
[Date "2022.08.05"]
[Round "7.1"]
[White "Tania, Sachdev"]
[Black "Fataliyeva, Ulviyya"]
[Result "1-0"]
[WhiteElo "2399"]
[BlackElo "2372"]
[Annotator "TA"]
[PlyCount "125"]
[EventDate "2022.??.??"]
[TimeControl "60"]

{[%evp 18,125,-23,-12,-26,-21,0,-32,-20,-19,-18,-14,-10,-19,-15,-8,10,13,34,53,
48,30,20,0,2,0,0,0,0,0,0,0,42,-12,0,0,0,-19,30,30,86,73,133,142,218,203,208,
166,188,-79,34,0,-6,-29,-30,-149,-122,-127,-10,-17,-24,-14,0,0,0,0,0,0,80,77,
80,74,77,77,80,83,83,83,381,363,363,227,433,235,1610,1111,5814,1689,1843,1275,
12822,10970,5628,1050,4686,4622,2292,1541,29973,29975,29975,29976,29977,29978,
29978,29979,29978,29979,29979,29980]} 1. d4 {[%emt 0:00:23]} d5 {[%emt 0:00:04]
} 2. c4 {[%emt 0:00:15]} c6 {[%emt 0:00:04]} 3. Nf3 {[%emt 0:00:28]} Nf6 {
[%emt 0:00:05]} 4. Nc3 {[%emt 0:00:15]} a6 {[%emt 0:00:05]} 5. e3 {[%emt 0:00:
00]} e6 {[%emt 0:00:14]} 6. Bd3 {[%emt 0:04:34]} dxc4 {[%emt 0:00:13]} 7. Bxc4
{[%emt 0:00:01]} c5 {[%emt 0:00:24]} 8. O-O {[%emt 0:03:24]} b5 {[%emt 0:00:39]
} 9. Bd3 {[%emt 0:06:02] 9.dxc5 gains popularity.} Bb7 {[%emt 0:01:55]} 10. a3
{[%emt 0:04:17]} Nbd7 {[%emt 0:01:53] D40: Queen's Gambit Declined:
Semi-Tarrasch with 5 e3.} 11. Qe2 {[%emt 0:08:00]} Qb6 {[%emt 0:07:16]} 12. Bc2
{[%emt 0:12:10]} Rc8 {[%emt 0:06:56] Black is slightly better.} 13. Rd1 {
[%emt 0:03:42]} Be7 {[%emt 0:07:16]} 14. dxc5 {[%emt 0:10:35] [#]} Bxc5 $146 {
[%emt 0:00:55]} ({Predecessor:} 14... Qxc5 15. e4 Qh5 16. Bf4 O-O 17. Bg3 Nc5
18. Rd4 Rfd8 19. Rad1 Rxd4 20. Rxd4 Qh6 21. Rd1 Rd8 22. Rxd8+ Bxd8 23. Qd2 Qxd2
24. Nxd2 Bb6 25. Kf1 {½-½ (25) Reshevsky,S-Najdorf,M Mex/NY/Salvador 1952})
15. h3 {[%emt 0:06:02]} Qc7 {[%emt 0:11:27]} 16. e4 {[%emt 0:08:42]} Nf8 {
[%emt 0:07:16]} 17. e5 {[%emt 0:05:16]} N6d7 {[%emt 0:01:03]} 18. Be4 {[%emt 0:
00:00]} Ng6 $1 {[%emt 0:04:29]} 19. Bxb7 {[%emt 0:01:55]} Qxb7 {[%emt 0:00:06]}
20. Ne4 {[%emt 0:02:10]} O-O {[%emt 0:04:56]} 21. b4 {[%emt 0:09:19]} Be7 {
[%emt 0:00:44]} 22. Nd6 {[%emt 0:00:22]} Bxd6 {[%emt 0:00:11]} 23. exd6 {
[%emt 0:00:06]} Rc4 {[%emt 0:02:02]} 24. Be3 {[%emt 0:03:25]} Rfc8 {[%emt 0:00:
00]} 25. Rac1 {[%emt 0:00:06]} (25. Nd4 $14) 25... h6 {[%emt 0:06:46]} 26. Rxc4
{[%emt 0:01:30]} Rxc4 {[%emt 0:01:13]} 27. Nd2 {[%emt 0:01:05]} Nh4 {[%emt 0:
00:00]} 28. f3 $11 {[%emt 0:00:30]} Rc2 {[%emt 0:07:28]} (28... Rc3 $11) 29.
Qd3 $16 {[%emt 0:00:01]} Qc6 {[%emt 0:00:52]} ({Better is} 29... Rc6) 30. Bc5
$1 {[%emt 0:00:55]} Ra2 {[%emt 0:00:26]} (30... Rxc5 $16 31. bxc5 Qxc5+ 32. Kh1
Qg5) 31. Qb3 $18 {[%emt 0:01:11]} Qd5 {[%emt 0:06:19]} 32. Qxd5 {[%emt 0:00:07]
} exd5 {[%emt 0:00:02] [#]} 33. Kf2 $2 {[%emt 0:01:08]} (33. Bf2 $1 $18 {
[%cal Rf2h4]} Ng6 34. Nb3) 33... a5 {[%emt 0:01:54]} ({But not} 33... Rxa3 $6
34. Re1 Ng6 35. Re8+ Kh7 36. Rd8 $11) (33... f6 $17 34. Kg1 Kf7) 34. g3 {
[%emt 0:00:42]} Ng6 $36 {[%emt 0:00:32] White is under pressure.} 35. f4 {
[%emt 0:00:46]} (35. Bd4 $5 {[%cal Rb4a5]} Rxa3 36. bxa5 Rxa5 37. f4 $11) 35...
a4 {[%emt 0:00:21]} 36. Ke3 {[%emt 0:00:29]} (36. Ke2 $11) 36... Rxa3+ $17 {
[%emt 0:02:10]} 37. Kd4 {[%emt 0:00:06]} Nf6 {[%emt 0:02:59]} (37... Rxg3 $17
38. Kxd5 Nf6+ 39. Kc6 Rd3 40. Kxb5 a3) 38. Nf1 {[%emt 0:00:03]} Nf8 {[%emt 0:
02:21] [#] aiming for ...Ne6+.} 39. f5 {[%emt 0:00:06] Against Ne6+} N8d7 {
[%emt 0:00:09] Strongly threatening ...Nb8.} 40. Ne3 {[%emt 0:00:47]} Nb8 {
[%emt 0:00:31][%cal Rb8c6] Pair of Knights!} 41. Bb6 {[%emt 0:31:11]} Nbd7 {
[%emt 0:19:59]} 42. Nxd5 {[%emt 0:00:00]} Nxd5 {[%emt 0:08:14]} (42... Rxg3 $11
{keeps the balance.} 43. Nxf6+ gxf6) 43. Kxd5 $16 {[%emt 0:00:00]} Nxb6+ $11 {
[%emt 0:00:27] Endgame KRN-KR} 44. Kc6 {[%emt 0:00:00]} Nc4 {[%emt 0:00:08]
[%cal Yc4d6]} (44... Rxg3 $2 45. Kxb6 Kh7 46. d7 $18) 45. d7 {[%emt 0:00:00]}
Ne5+ {[%emt 0:00:04]} 46. Kxb5 {[%emt 0:00:00]} Nxd7 {[%emt 0:00:00]} 47. Rxd7
$16 {[%emt 0:00:00] KR-KR} Ra1 $2 {[%emt 0:00:08] This move loses the game for
Black.} (47... Rxg3 $2 48. Kxa4 Rxh3 49. b5 $16) (47... Kf8 $16) 48. Rd8+ {
[%emt 0:00:00]} Kh7 {[%emt 0:00:05]} 49. Ka5 {[%emt 0:00:00] And now b5 would
win.} g6 $2 {[%emt 0:13:20]} (49... a3 {keeps fighting.} 50. Rd3 (50. b5 Rb1
$16) 50... a2) 50. b5 {[%emt 0:00:00]} (50. Rd3 $142) 50... gxf5 $2 {[%emt 0:
00:56]} (50... a3 51. Rd3 a2) 51. b6 {[%emt 0:00:00][%cal Yb5b6,Yb6b7] Hoping
for b7.} Rb1 {[%emt 0:00:08]} 52. Rd3 {[%emt 0:00:00]} Kg6 {[%emt 0:02:11]} 53.
Ra3 {[%emt 0:00:37]} Kf6 {[%emt 0:00:00]} 54. Ka6 {[%emt 0:00:19]} Ke5 {
[%emt 0:00:46]} 55. Rxa4 {[%emt 0:04:34]} (55. Ka7 $142 f4 56. gxf4+ Kxf4 57.
b7) 55... Kd5 {[%emt 0:00:20]} 56. b7 {[%emt 0:00:32] Black must now prevent
Ka7.} Kc6 {[%emt 0:00:13]} 57. Rc4+ {[%emt 0:00:01]} Kd7 {[%emt 0:00:34]} 58.
Rc5 {[%emt 0:01:21] White mates.} Ra1+ {[%emt 0:00:53]} 59. Ra5 {[%emt 0:00:36]
} Rxa5+ {[%emt 0:00:25]} 60. Kxa5 {[%emt 0:00:02]} ({Don't go for} 60. Kb6 $2
Ra3 61. b8=N+ Ke6 $19) 60... Kc7 {[%emt 0:00:01]} 61. Ka6 {[%emt 0:00:05]} Kb8
{[%emt 0:00:09]} 62. Kb6 {[%emt 0:00:00]} h5 {[%emt 0:00:16]} 63. h4 {[%emt 0:
00:09] Weighted Error Value: White=0.27 (precise) /Black=0.57} 1-0